[Event "*** SCC Grand Prix: Titled Tuesday Blitz"]
[Site "Chess.com"]
[Date "2020.08.25"]
[Round "4"]
[White "BeanScreen"]
[Black "Dinamo3"]
[Result "1-0"]
[WhiteElo "2688"]
[BlackElo "2472"]
[TimeControl "180+1"]
[EndTime "10:41:12 PDT"]
[Termination "BeanScreen won on time"]

1. e4 {[%clk 0:03:00.8]} 1... c6 {[%clk 0:02:59.9]} 2. d4 {[%clk 0:03:00.9]}
2... d5 {[%clk 0:03:00.2]} 3. exd5 {[%clk 0:03:01.8]} 3... cxd5 {[%clk 0:03:00]}
4. Bd3 {[%clk 0:03:02.3]} 4... Nc6 {[%clk 0:02:59.7]} 5. c3 {[%clk 0:03:02.8]}
5... Qc7 {[%clk 0:03:00.2]} 6. Bg5 {[%clk 0:03:02.7]} 6... Nf6 {[%clk
0:02:59.6]} 7. Nd2 {[%clk 0:03:02.7]} 7... Bg4 {[%clk 0:02:47.9]} 8. Ngf3 {[%clk
0:03:02.9]} 8... e6 {[%clk 0:02:43.4]} 9. Bh4 {[%clk 0:03:02.8]} 9... Bd6 {[%clk
0:02:43.3]} 10. Qc2 {[%clk 0:03:02.6]} 10... h6 {[%clk 0:02:27.6]} 11. Bg3
{[%clk 0:02:59.5]} 11... Rc8 {[%clk 0:02:18.7]} 12. Bxd6 {[%clk 0:02:57.7]}
12... Qxd6 {[%clk 0:02:18.9]} 13. h3 {[%clk 0:02:57.1]} 13... Bxf3 {[%clk
0:02:17.8]} 14. Nxf3 {[%clk 0:02:58]} 14... O-O {[%clk 0:02:15.9]} 15. O-O
{[%clk 0:02:57.1]} 15... Nb4 {[%clk 0:02:09.6]} 16. Qd2 {[%clk 0:02:57.5]} 16...
Nxd3 {[%clk 0:02:09.8]} 17. Qxd3 {[%clk 0:02:58.4]} 17... a6 {[%clk 0:02:01.4]}
18. a4 {[%clk 0:02:58.2]} 18... Rb8 {[%clk 0:01:39.5]} 19. a5 {[%clk 0:02:51]}
19... Rfc8 {[%clk 0:01:26.2]} 20. Ne5 {[%clk 0:02:50]} 20... Nd7 {[%clk
0:01:24.7]} 21. f4 {[%clk 0:02:49.4]} 21... Nxe5 {[%clk 0:01:20.7]} 22. fxe5
{[%clk 0:02:50.3]} 22... Qc6 {[%clk 0:01:15.5]} 23. Rf4 {[%clk 0:02:47.9]} 23...
Rc7 {[%clk 0:01:14.9]} 24. Raf1 {[%clk 0:02:46.1]} 24... b5 {[%clk 0:01:07.4]}
25. axb6 {[%clk 0:02:45.3]} 25... Rxb6 {[%clk 0:01:04.1]} 26. Qd2 {[%clk
0:02:31.2]} 26... Qb5 {[%clk 0:00:59.1]} 27. Rg4 {[%clk 0:02:23.6]} 27... Kf8
{[%clk 0:00:49.6]} 28. Qc2 {[%clk 0:01:38]} 28... Kg8 {[%clk 0:00:40.2]} 29. Rf2
{[%clk 0:01:13.3]} 29... a5 {[%clk 0:00:39.8]} 30. Qd2 {[%clk 0:01:08.6]} 30...
Kf8 {[%clk 0:00:39.2]} 31. Qf4 {[%clk 0:01:07.1]} 31... Qd3 {[%clk 0:00:34.1]}
32. Rg3 {[%clk 0:01:01.7]} 32... Qb1+ {[%clk 0:00:34.2]} 33. Rf1 {[%clk
0:00:57.3]} 33... Qh7 {[%clk 0:00:20.4]} 34. Qg4 {[%clk 0:00:57.1]} 34... Kg8
{[%clk 0:00:11]} 35. Qh4 {[%clk 0:00:57]} 35... Rb8 {[%clk 0:00:10.4]} 36. Rgf3
{[%clk 0:00:56.2]} 36... Rf8 {[%clk 0:00:09.6]} 37. Rg3 {[%clk 0:00:47.9]} 37...
Rb7 {[%clk 0:00:09.7]} 38. Rf2 {[%clk 0:00:48]} 38... Kh8 {[%clk 0:00:09.7]} 39.
Kh2 {[%clk 0:00:48.4]} 39... Kg8 {[%clk 0:00:09.7]} 40. Rf4 {[%clk 0:00:46.9]}
40... a4 {[%clk 0:00:10]} 41. Rfg4 {[%clk 0:00:47.3]} 41... Kh8 {[%clk 0:00:09]}
42. Rf4 {[%clk 0:00:27.4]} 42... Rxb2 {[%clk 0:00:08.6]} 43. Qe7 {[%clk
0:00:26.1]} 43... Rbb8 {[%clk 0:00:08.5]} 44. Rxf7 {[%clk 0:00:26.1]} 44... Qg8
{[%clk 0:00:07.5]} 45. Rgxg7 {[%clk 0:00:24.2]} 45... Rxf7 {[%clk 0:00:05.1]}
46. Rxf7 {[%clk 0:00:22.6]} 46... Re8 {[%clk 0:00:03.3]} 47. Qf6+ {[%clk
0:00:23]} 1-0

[Event "*** SCC Grand Prix: Titled Tuesday Blitz"]
[Site "Chess.com"]
[Date "2020.08.25"]
[Round "4"]
[White "elegant285"]
[Black "Lion-Al-Messi"]
[Result "0-1"]
[WhiteElo "2369"]
[BlackElo "2575"]
[TimeControl "180+1"]
[EndTime "10:41:12 PDT"]
[Termination "Lion-Al-Messi won by checkmate"]

1. d4 {[%clk 0:03:00.9]} 1... d5 {[%clk 0:03:00.1]} 2. Bf4 {[%clk 0:03:00.1]}
2... Nf6 {[%clk 0:02:59.9]} 3. e3 {[%clk 0:03:00.6]} 3... c5 {[%clk 0:03:00.3]}
4. c3 {[%clk 0:03:00.4]} 4... Qb6 {[%clk 0:02:58]} 5. Qb3 {[%clk 0:02:55.9]}
5... c4 {[%clk 0:02:57]} 6. Qxb6 {[%clk 0:02:55.1]} 6... axb6 {[%clk 0:02:57.9]}
7. Nd2 {[%clk 0:02:55.7]} 7... b5 {[%clk 0:02:56.5]} 8. a3 {[%clk 0:02:53.4]}
8... Bf5 {[%clk 0:02:48.8]} 9. Rc1 {[%clk 0:02:47.1]} 9... e6 {[%clk 0:02:48.5]}
10. h3 {[%clk 0:02:45.6]} 10... Nc6 {[%clk 0:02:48.3]} 11. Ngf3 {[%clk
0:02:44.9]} 11... h6 {[%clk 0:02:46.1]} 12. g4 {[%clk 0:02:43.1]} 12... Bh7
{[%clk 0:02:45.3]} 13. Be2 {[%clk 0:02:42.1]} 13... Be7 {[%clk 0:02:44.9]} 14.
Ne5 {[%clk 0:02:37.6]} 14... Nxe5 {[%clk 0:02:43.5]} 15. Bxe5 {[%clk 0:02:38.5]}
15... Kd7 {[%clk 0:02:39.6]} 16. Bf3 {[%clk 0:02:33.9]} 16... Rhg8 {[%clk
0:02:37.7]} 17. Bxf6 {[%clk 0:02:30.5]} 17... Bxf6 {[%clk 0:02:37.7]} 18. e4
{[%clk 0:02:31]} 18... Kc6 {[%clk 0:02:30.9]} 19. Ke2 {[%clk 0:02:19.2]} 19...
Bg5 {[%clk 0:02:30.5]} 20. Rce1 {[%clk 0:02:12.8]} 20... Rae8 {[%clk 0:02:14.8]}
21. Kd1 {[%clk 0:02:10.6]} 21... Bf4 {[%clk 0:02:06.9]} 22. Re2 {[%clk
0:02:04.9]} 22... Kd6 {[%clk 0:01:35.4]} 23. Rhe1 {[%clk 0:01:58]} 23... e5
{[%clk 0:01:27.7]} 24. dxe5+ {[%clk 0:01:50.7]} 24... Rxe5 {[%clk 0:01:21.9]}
25. exd5 {[%clk 0:01:49]} 25... Rge8 {[%clk 0:01:12.1]} 26. Ne4+ {[%clk
0:01:29.3]} 26... Bxe4 {[%clk 0:01:08.4]} 27. Bxe4 {[%clk 0:01:29.3]} 27... g6
{[%clk 0:00:57.7]} 28. h4 {[%clk 0:00:53.3]} 28... b6 {[%clk 0:00:54.7]} 29. Bf3
{[%clk 0:00:35.4]} 29... Rxe2 {[%clk 0:00:54.3]} 30. Rxe2 {[%clk 0:00:36.3]}
30... Rxe2 {[%clk 0:00:54.4]} 31. Kxe2 {[%clk 0:00:37.2]} 31... Bc1 {[%clk
0:00:54.3]} 32. Kd1 {[%clk 0:00:32.6]} 32... Bxb2 {[%clk 0:00:53.6]} 33. Kc2
{[%clk 0:00:33.5]} 33... Bxa3 {[%clk 0:00:53.9]} 34. Be4 {[%clk 0:00:32.7]}
34... Ke5 {[%clk 0:00:46.5]} 35. Bg2 {[%clk 0:00:29.8]} 35... Bc5 {[%clk
0:00:44.1]} 36. f3 {[%clk 0:00:23.7]} 36... Kxd5 {[%clk 0:00:41.7]} 37. f4+
{[%clk 0:00:24]} 37... Kd6 {[%clk 0:00:40.1]} 38. Kd2 {[%clk 0:00:24]} 38... b4
{[%clk 0:00:32.4]} 39. cxb4 {[%clk 0:00:24.9]} 39... Bxb4+ {[%clk 0:00:33.3]}
40. Kc2 {[%clk 0:00:25.2]} 40... b5 {[%clk 0:00:26.7]} 41. Bb7 {[%clk
0:00:23.9]} 41... Kc5 {[%clk 0:00:21.6]} 42. h5 {[%clk 0:00:23.5]} 42... gxh5
{[%clk 0:00:21.4]} 43. gxh5 {[%clk 0:00:24.4]} 43... Be1 {[%clk 0:00:17.2]} 44.
f5 {[%clk 0:00:24.7]} 44... f6 {[%clk 0:00:16]} 45. Bc8 {[%clk 0:00:24.3]} 45...
b4 {[%clk 0:00:15.2]} 46. Be6 {[%clk 0:00:24.4]} 46... b3+ {[%clk 0:00:14.5]}
47. Kd1 {[%clk 0:00:23.8]} 47... Bg3 {[%clk 0:00:14.3]} 48. Kc1 {[%clk 0:00:24]}
48... Be5 {[%clk 0:00:14.3]} 49. Kb1 {[%clk 0:00:23.3]} 49... Kb4 {[%clk
0:00:14.2]} 50. Kc1 {[%clk 0:00:22.9]} 50... c3 {[%clk 0:00:14.2]} 51. Kb1
{[%clk 0:00:20.4]} 51... c2+ {[%clk 0:00:14.2]} 52. Kc1 {[%clk 0:00:19.3]} 52...
Bf4+ {[%clk 0:00:15]} 53. Kb2 {[%clk 0:00:20.2]} 53... c1=Q# {[%clk 0:00:15]}
0-1

[Event "*** SCC Grand Prix: Titled Tuesday Blitz"]
[Site "Chess.com"]
[Date "2020.08.25"]
[Round "4"]
[White "JoySpaceman"]
[Black "seorobert1971"]
[Result "0-1"]
[WhiteElo "2453"]
[BlackElo "2640"]
[TimeControl "180+1"]
[EndTime "10:41:13 PDT"]
[Termination "seorobert1971 won by resignation"]

1. d4 {[%clk 0:03:00.9]} 1... Nf6 {[%clk 0:02:59.8]} 2. Nc3 {[%clk 0:03:01.4]}
2... d5 {[%clk 0:02:59.4]} 3. Bf4 {[%clk 0:03:01.5]} 3... a6 {[%clk 0:02:58.9]}
4. e3 {[%clk 0:03:01.5]} 4... e6 {[%clk 0:02:59]} 5. g4 {[%clk 0:03:00.9]} 5...
c5 {[%clk 0:02:58.5]} 6. g5 {[%clk 0:02:59.8]} 6... Nfd7 {[%clk 0:02:58.5]} 7.
Nf3 {[%clk 0:02:58.2]} 7... Nc6 {[%clk 0:02:58.1]} 8. Be2 {[%clk 0:02:54.6]}
8... Qb6 {[%clk 0:02:57.6]} 9. Rb1 {[%clk 0:02:24.2]} 9... Qa5 {[%clk
0:02:53.4]} 10. Qd2 {[%clk 0:02:21.9]} 10... b5 {[%clk 0:02:51.2]} 11. O-O
{[%clk 0:02:14.8]} 11... cxd4 {[%clk 0:02:35.7]} 12. Nxd4 {[%clk 0:02:09.9]}
12... Nxd4 {[%clk 0:02:29.7]} 13. Qxd4 {[%clk 0:02:06.6]} 13... Qb4 {[%clk
0:02:17.5]} 14. Nxd5 {[%clk 0:01:49.1]} 14... Qxd4 {[%clk 0:02:16.5]} 15. Nc7+
{[%clk 0:01:48.9]} 15... Kd8 {[%clk 0:02:16.5]} 16. exd4 {[%clk 0:01:49.2]}
16... Ra7 {[%clk 0:02:16.5]} 17. Nxb5 {[%clk 0:01:12.2]} 17... axb5 {[%clk
0:02:15.8]} 18. Bxb5 {[%clk 0:01:13.1]} 18... Rxa2 {[%clk 0:02:09.9]} 19. Rfd1
{[%clk 0:00:59.3]} 19... Be7 {[%clk 0:01:57.7]} 20. d5 {[%clk 0:00:56.1]} 20...
e5 {[%clk 0:01:56.8]} 21. Be3 {[%clk 0:00:55.8]} 21... Bd6 {[%clk 0:01:32.2]}
22. Bc4 {[%clk 0:00:44]} 22... Ra8 {[%clk 0:01:30.1]} 23. b4 {[%clk 0:00:43.6]}
23... f5 {[%clk 0:01:25.8]} 24. f3 {[%clk 0:00:36.1]} 24... Bb7 {[%clk
0:01:15.6]} 25. Bb5 {[%clk 0:00:34.1]} 25... e4 {[%clk 0:01:05.1]} 26. f4 {[%clk
0:00:31.7]} 26... h6 {[%clk 0:01:01.2]} 27. g6 {[%clk 0:00:19]} 27... Nf8 {[%clk
0:01:00.1]} 28. Kf2 {[%clk 0:00:12.5]} 28... Nxg6 {[%clk 0:00:58.8]} 29. Rg1
{[%clk 0:00:12.7]} 29... Nxf4 {[%clk 0:00:38.4]} 30. Rxg7 {[%clk 0:00:12.8]}
30... Kc8 {[%clk 0:00:29.4]} 31. Rd7 {[%clk 0:00:09.9]} 31... Be5 {[%clk
0:00:28.8]} 32. Rg1 {[%clk 0:00:06.3]} 32... Ra2 {[%clk 0:00:24.4]} 33. Rc1
{[%clk 0:00:05.4]} 33... Nxd5 {[%clk 0:00:20.5]} 34. Bc5 {[%clk 0:00:01.6]}
34... f4 {[%clk 0:00:16.5]} 35. Rxb7 {[%clk 0:00:02]} 35... Kxb7 {[%clk
0:00:15.8]} 36. Bc4 {[%clk 0:00:02.8]} 36... Nc3 {[%clk 0:00:14.2]} 37. Bxa2
{[%clk 0:00:03.2]} 37... Nxa2 {[%clk 0:00:14.2]} 38. Rd1 {[%clk 0:00:04.1]}
38... Nc3 {[%clk 0:00:12.9]} 39. Rd7+ {[%clk 0:00:04.4]} 39... Kc6 {[%clk
0:00:13.1]} 40. Re7 {[%clk 0:00:05.3]} 40... Kd5 {[%clk 0:00:12.5]} 41. Rd7+
{[%clk 0:00:05.3]} 41... Kc4 {[%clk 0:00:12.1]} 42. Re7 {[%clk 0:00:05.9]} 42...
Bd4+ {[%clk 0:00:12.1]} 43. Bxd4 {[%clk 0:00:05.6]} 43... Kxd4 {[%clk 0:00:13]}
44. Rd7+ {[%clk 0:00:05.8]} 44... Kc4 {[%clk 0:00:13.3]} 45. Rh7 {[%clk
0:00:02.8]} 45... Rxh7 {[%clk 0:00:12.6]} 0-1

[Event "*** SCC Grand Prix: Titled Tuesday Blitz"]
[Site "Chess.com"]
[Date "2020.08.25"]
[Round "4"]
[White "ENajer77"]
[Black "Barmen_EV"]
[Result "0-1"]
[WhiteElo "2595"]
[BlackElo "2453"]
[TimeControl "180+1"]
[EndTime "10:41:13 PDT"]
[Termination "Barmen_EV won on time"]

1. d4 {[%clk 0:03:00.9]} 1... d5 {[%clk 0:02:52.3]} 2. c4 {[%clk 0:03:00.8]}
2... e6 {[%clk 0:02:44.7]} 3. Nc3 {[%clk 0:02:59.7]} 3... Bb4 {[%clk 0:02:44]}
4. cxd5 {[%clk 0:02:56.4]} 4... exd5 {[%clk 0:02:44.9]} 5. Bf4 {[%clk
0:02:56.6]} 5... c5 {[%clk 0:02:45]} 6. e3 {[%clk 0:02:55.3]} 6... Nc6 {[%clk
0:02:45.9]} 7. a3 {[%clk 0:02:38.7]} 7... Bxc3+ {[%clk 0:02:43.8]} 8. bxc3
{[%clk 0:02:39.3]} 8... Nge7 {[%clk 0:02:44.7]} 9. Bd3 {[%clk 0:02:35.1]} 9...
Bf5 {[%clk 0:02:43.2]} 10. Ne2 {[%clk 0:02:26.7]} 10... O-O {[%clk 0:02:39.6]}
11. O-O {[%clk 0:02:25.2]} 11... Bxd3 {[%clk 0:02:40.5]} 12. Qxd3 {[%clk
0:02:25.2]} 12... Ng6 {[%clk 0:02:34]} 13. dxc5 {[%clk 0:02:20.4]} 13... Nce5
{[%clk 0:02:18.6]} 14. Qb5 {[%clk 0:02:15.7]} 14... Qe7 {[%clk 0:02:10]} 15.
Rab1 {[%clk 0:02:11]} 15... Rac8 {[%clk 0:02:05.7]} 16. Qxb7 {[%clk 0:02:08.3]}
16... Rc7 {[%clk 0:02:06.1]} 17. Qxd5 {[%clk 0:02:06.8]} 17... Rxc5 {[%clk
0:02:04.5]} 18. Qb7 {[%clk 0:01:41.5]} 18... Rc7 {[%clk 0:02:01.2]} 19. Qa6
{[%clk 0:01:41.5]} 19... Rfc8 {[%clk 0:01:58.4]} 20. h3 {[%clk 0:01:37.1]} 20...
h6 {[%clk 0:01:52.7]} 21. Rfd1 {[%clk 0:01:37]} 21... Rc6 {[%clk 0:01:49]} 22.
Qa4 {[%clk 0:01:31.2]} 22... Rc4 {[%clk 0:01:45.8]} 23. Rb4 {[%clk 0:01:29.6]}
23... R4c6 {[%clk 0:01:32.8]} 24. Bg3 {[%clk 0:01:13.7]} 24... a6 {[%clk
0:01:22.6]} 25. Rdb1 {[%clk 0:01:02]} 25... Qf6 {[%clk 0:01:15.8]} 26. Rb8
{[%clk 0:00:58.7]} 26... Kh7 {[%clk 0:00:54.8]} 27. Rxc8 {[%clk 0:00:56.7]}
27... Rxc8 {[%clk 0:00:55.7]} 28. Qe4 {[%clk 0:00:42.5]} 28... Rc4 {[%clk
0:00:52.7]} 29. Bxe5 {[%clk 0:00:41.5]} 29... Rxe4 {[%clk 0:00:46.3]} 30. Bxf6
{[%clk 0:00:41.3]} 30... gxf6 {[%clk 0:00:47.2]} 31. Nd4 {[%clk 0:00:37.6]}
31... Re5 {[%clk 0:00:44.1]} 32. Rb7 {[%clk 0:00:25.2]} 32... Kg7 {[%clk
0:00:43.2]} 33. Ra7 {[%clk 0:00:18.5]} 33... Ra5 {[%clk 0:00:42.5]} 34. Ne6+
{[%clk 0:00:18.5]} 34... Kg8 {[%clk 0:00:39.7]} 35. Ra8+ {[%clk 0:00:13.6]}
35... Kh7 {[%clk 0:00:39.7]} 36. Nc7 {[%clk 0:00:08.3]} 36... Rxa3 {[%clk
0:00:39.5]} 37. Rxa6 {[%clk 0:00:07.4]} 37... Rxc3 {[%clk 0:00:40.4]} 38. Nd5
{[%clk 0:00:07.6]} 38... Rc1+ {[%clk 0:00:39.8]} 39. Kh2 {[%clk 0:00:08.2]}
39... f5 {[%clk 0:00:40.6]} 40. Rf6 {[%clk 0:00:07.4]} 40... Kg7 {[%clk
0:00:22.9]} 41. Rxf5 {[%clk 0:00:07.9]} 41... Rc5 {[%clk 0:00:23.7]} 42. e4
{[%clk 0:00:06.9]} 42... Rc4 {[%clk 0:00:23.8]} 43. f3 {[%clk 0:00:04.7]} 43...
Rc2 {[%clk 0:00:24.7]} 44. Kg3 {[%clk 0:00:03.6]} 44... Ra2 {[%clk 0:00:23.1]}
45. h4 {[%clk 0:00:03.7]} 45... Nf8 {[%clk 0:00:21.8]} 46. Nf4 {[%clk
0:00:01.3]} 46... Ne6 {[%clk 0:00:22.7]} 0-1

[Event "*** SCC Grand Prix: Titled Tuesday Blitz"]
[Site "Chess.com"]
[Date "2020.08.25"]
[Round "4"]
[White "elohunter1999"]
[Black "Marty435"]
[Result "0-1"]
[WhiteElo "2450"]
[BlackElo "2627"]
[TimeControl "180+1"]
[EndTime "10:41:15 PDT"]
[Termination "Marty435 won by checkmate"]

1. e4 {[%clk 0:03:00.9]} 1... c5 {[%clk 0:02:46]} 2. Nf3 {[%clk 0:03:00.2]} 2...
d6 {[%clk 0:02:41.5]} 3. d4 {[%clk 0:03:00.2]} 3... cxd4 {[%clk 0:02:40.9]} 4.
Nxd4 {[%clk 0:03:01.1]} 4... Nf6 {[%clk 0:02:41.3]} 5. Nc3 {[%clk 0:03:01]} 5...
Nc6 {[%clk 0:02:29.3]} 6. Bg5 {[%clk 0:03:00.5]} 6... e6 {[%clk 0:02:28.7]} 7.
Qd2 {[%clk 0:03:00.2]} 7... a6 {[%clk 0:02:28.5]} 8. O-O-O {[%clk 0:03:00.1]}
8... Bd7 {[%clk 0:02:28.9]} 9. f4 {[%clk 0:03:00.1]} 9... h6 {[%clk 0:02:26.2]}
10. Bh4 {[%clk 0:02:58.5]} 10... b5 {[%clk 0:02:25.8]} 11. Bxf6 {[%clk
0:02:49.6]} 11... gxf6 {[%clk 0:02:26.7]} 12. Kb1 {[%clk 0:02:49.1]} 12... Qb6
{[%clk 0:02:22.6]} 13. Nxc6 {[%clk 0:02:48.7]} 13... Bxc6 {[%clk 0:02:22.4]} 14.
f5 {[%clk 0:02:48.8]} 14... O-O-O {[%clk 0:02:22]} 15. fxe6 {[%clk 0:02:27.5]}
15... fxe6 {[%clk 0:02:22.9]} 16. a3 {[%clk 0:02:25.6]} 16... h5 {[%clk
0:02:21.4]} 17. Bd3 {[%clk 0:02:10.6]} 17... Bh6 {[%clk 0:02:21.3]} 18. Qe1
{[%clk 0:02:10.5]} 18... Qe3 {[%clk 0:02:20.9]} 19. Ne2 {[%clk 0:01:34.5]} 19...
Kb7 {[%clk 0:02:02.7]} 20. Rf1 {[%clk 0:01:31.5]} 20... Rhf8 {[%clk 0:01:54.3]}
21. Qc3 {[%clk 0:01:31.1]} 21... Qc5 {[%clk 0:01:50.1]} 22. Qb3 {[%clk
0:01:27.1]} 22... d5 {[%clk 0:01:33.8]} 23. Qc3 {[%clk 0:01:04.6]} 23... Qxc3
{[%clk 0:01:32.2]} 24. Nxc3 {[%clk 0:01:05.5]} 24... d4 {[%clk 0:01:28.1]} 25.
Ne2 {[%clk 0:01:04.6]} 25... Be3 {[%clk 0:01:21.6]} 26. Nf4 {[%clk 0:00:55.6]}
26... Rd6 {[%clk 0:00:48.6]} 27. Nxh5 {[%clk 0:00:51.8]} 27... f5 {[%clk
0:00:34.9]} 28. g4 {[%clk 0:00:34.1]} 28... f4 {[%clk 0:00:25.9]} 29. Rf3 {[%clk
0:00:33.5]} 29... e5 {[%clk 0:00:25.1]} 30. Ng7 {[%clk 0:00:30.2]} 30... Rh6
{[%clk 0:00:22.7]} 31. h3 {[%clk 0:00:29.3]} 31... Rfh8 {[%clk 0:00:22.2]} 32.
Rh1 {[%clk 0:00:28.9]} 32... R6h7 {[%clk 0:00:19.4]} 33. Nf5 {[%clk 0:00:28.6]}
33... Kc7 {[%clk 0:00:19]} 34. g5 {[%clk 0:00:27.6]} 34... Rh5 {[%clk
0:00:17.2]} 35. h4 {[%clk 0:00:25.4]} 35... Rg8 {[%clk 0:00:15.6]} 36. c3 {[%clk
0:00:21]} 36... Rgxg5 {[%clk 0:00:14.1]} 37. cxd4 {[%clk 0:00:19]} 37... Rxf5
{[%clk 0:00:14.2]} 38. d5 {[%clk 0:00:18.2]} 38... Bb7 {[%clk 0:00:09.3]} 39.
exf5 {[%clk 0:00:18.3]} 39... Bxd5 {[%clk 0:00:09.5]} 40. Be2 {[%clk 0:00:18.1]}
40... Rxf5 {[%clk 0:00:07.5]} 41. h5 {[%clk 0:00:17.8]} 41... e4 {[%clk
0:00:06.5]} 42. Rff1 {[%clk 0:00:17.1]} 42... f3 {[%clk 0:00:06.7]} 43. Bd1
{[%clk 0:00:17.5]} 43... Rf6 {[%clk 0:00:05]} 44. Rh3 {[%clk 0:00:17.2]} 44...
Bh6 {[%clk 0:00:05]} 45. Kc2 {[%clk 0:00:16.5]} 45... Kd6 {[%clk 0:00:05.2]} 46.
Re1 {[%clk 0:00:12.8]} 46... Ke5 {[%clk 0:00:05.7]} 47. Rf1 {[%clk 0:00:13.1]}
47... Kd4 {[%clk 0:00:05.2]} 48. Rh4 {[%clk 0:00:12.5]} 48... Rc6+ {[%clk
0:00:05.1]} 49. Kb1 {[%clk 0:00:12]} 49... Rc1# {[%clk 0:00:05.8]} 0-1

[Event "*** SCC Grand Prix: Titled Tuesday Blitz"]
[Site "Chess.com"]
[Date "2020.08.25"]
[Round "4"]
[White "ChronicUnhappiness"]
[Black "creativity"]
[Result "0-1"]
[WhiteElo "2361"]
[BlackElo "2044"]
[TimeControl "180+1"]
[EndTime "10:41:19 PDT"]
[Termination "creativity won on time"]

1. d4 {[%clk 0:03:00.9]} 1... Nf6 {[%clk 0:02:58.3]} 2. c4 {[%clk 0:03:00.4]}
2... g6 {[%clk 0:02:58.2]} 3. Nc3 {[%clk 0:03:00.6]} 3... Bg7 {[%clk 0:02:57.9]}
4. e4 {[%clk 0:03:00.9]} 4... d6 {[%clk 0:02:57.1]} 5. Nf3 {[%clk 0:03:01.1]}
5... O-O {[%clk 0:02:56.2]} 6. Be2 {[%clk 0:03:01.2]} 6... e5 {[%clk 0:02:54.4]}
7. O-O {[%clk 0:03:01]} 7... Nc6 {[%clk 0:02:54.1]} 8. Be3 {[%clk 0:03:01.2]}
8... exd4 {[%clk 0:02:40.4]} 9. Nxd4 {[%clk 0:03:00.6]} 9... Re8 {[%clk
0:02:36.2]} 10. Nxc6 {[%clk 0:03:00]} 10... bxc6 {[%clk 0:02:35.9]} 11. Qc2
{[%clk 0:02:59.8]} 11... a5 {[%clk 0:02:22.1]} 12. Rad1 {[%clk 0:02:57.9]} 12...
Nd7 {[%clk 0:02:20.5]} 13. c5 {[%clk 0:02:31.1]} 13... Qe7 {[%clk 0:01:48.7]}
14. cxd6 {[%clk 0:02:29.9]} 14... cxd6 {[%clk 0:01:48.3]} 15. Bd4 {[%clk
0:02:21.8]} 15... Ba6 {[%clk 0:01:43]} 16. Bxa6 {[%clk 0:02:18.3]} 16... Rxa6
{[%clk 0:01:42.5]} 17. Bxg7 {[%clk 0:02:13.6]} 17... Kxg7 {[%clk 0:01:41.9]} 18.
Qd3 {[%clk 0:02:12.5]} 18... Nc5 {[%clk 0:01:37.9]} 19. Qxd6 {[%clk 0:02:04.5]}
19... Qxd6 {[%clk 0:01:37.4]} 20. Rxd6 {[%clk 0:02:03.3]} 20... Nxe4 {[%clk
0:01:37.2]} 21. Nxe4 {[%clk 0:01:10.4]} 21... Rxe4 {[%clk 0:01:38.1]} 22. Rd2
{[%clk 0:01:01.7]} 22... Rb6 {[%clk 0:01:35]} 23. g3 {[%clk 0:01:01.4]} 23... h5
{[%clk 0:01:33.5]} 24. Rc1 {[%clk 0:00:59.5]} 24... Reb4 {[%clk 0:01:31.5]} 25.
b3 {[%clk 0:00:51.7]} 25... a4 {[%clk 0:01:30]} 26. bxa4 {[%clk 0:00:50.3]}
26... Rxa4 {[%clk 0:01:29.6]} 27. h4 {[%clk 0:00:40.5]} 27... Rba6 {[%clk
0:01:25.1]} 28. Rcc2 {[%clk 0:00:39.7]} 28... Ra3 {[%clk 0:01:21.8]} 29. Kg2
{[%clk 0:00:38.7]} 29... c5 {[%clk 0:01:18.3]} 30. Kf1 {[%clk 0:00:38.4]} 30...
c4 {[%clk 0:01:18.2]} 31. Kg2 {[%clk 0:00:32.4]} 31... c3 {[%clk 0:01:16.7]} 32.
Re2 {[%clk 0:00:32.1]} 32... Kf6 {[%clk 0:01:07.1]} 33. Kf3 {[%clk 0:00:32.4]}
33... Rd6 {[%clk 0:00:59.5]} 34. Ke3 {[%clk 0:00:31.2]} 34... Kf5 {[%clk
0:00:55.3]} 35. Kf3 {[%clk 0:00:24.6]} 35... Rd3+ {[%clk 0:00:50.2]} 36. Kg2
{[%clk 0:00:15.3]} 36... f6 {[%clk 0:00:41.9]} 37. Kf1 {[%clk 0:00:10.4]} 37...
g5 {[%clk 0:00:37.5]} 38. Ke1 {[%clk 0:00:06.4]} 38... gxh4 {[%clk 0:00:36.4]}
39. gxh4 {[%clk 0:00:07.3]} 39... Rh3 {[%clk 0:00:33.9]} 40. Kf1 {[%clk
0:00:06.4]} 40... Rxh4 {[%clk 0:00:31.6]} 41. Re3 {[%clk 0:00:06.1]} 41... Rc4
{[%clk 0:00:26.6]} 42. Ke2 {[%clk 0:00:05.9]} 42... h4 {[%clk 0:00:22.2]} 43.
Kf3 {[%clk 0:00:05.1]} 43... Kg5 {[%clk 0:00:21.2]} 44. Kg2 {[%clk 0:00:04.4]}
44... f5 {[%clk 0:00:20.3]} 45. Kh3 {[%clk 0:00:04.1]} 45... Rca4 {[%clk
0:00:16.9]} 46. Rexc3 {[%clk 0:00:02]} 46... Rxc3+ {[%clk 0:00:16.8]} 47. Rxc3
{[%clk 0:00:01.8]} 47... Rxa2 {[%clk 0:00:17]} 48. f3 {[%clk 0:00:01.6]} 48...
Kf4 {[%clk 0:00:15.1]} 0-1